[Event "Chessity Nationale Pupillendag 2019 - Groep G"]
[Site "Meppel, Netherlands"]
[Date "2019.06.29"]
[Round "5.4"]
[White "Rooijakkers, Liam"]
[Black "Kumar, Prayan Sai"]
[Result "1-0"]
[TimeControl "15 min + 10 sec"]
[WhiteElo "733"]
[BlackElo "428"]

1. e4 {[%emt 00:00:27]} e5 {[%clk 00:15:19]} 2. Nc3 {[%emt 00:00:06]} Nc6
{[%clk 00:15:24]} 3. f4 {[%emt 00:00:03]} exf4 {[%clk 00:15:30]} {[%emt
00:00:02]} 4. Nf3 {[%clk 00:15:39]} {[%emt 00:00:07]} Nf6 {[%clk 00:15:35]}
{[%emt 00:00:04]} 5. e5 {[%emt 00:00:12]} Nh5 {[%emt 00:00:10]} 6. d4 {[%emt
00:00:06]} d6 {[%emt 00:00:14]} 7. Bb5 {[%clk 00:15:35]} {[%emt 00:00:13]} d5
{[%clk 00:15:44]} {[%emt 00:00:21]} 8. O-O {[%clk 00:15:23]} a6 {[%clk
00:15:44]} {[%emt 00:00:11]} 9. Ba4 {[%emt 00:00:22]} Be7 {[%emt 00:00:15]} 10.
Nd2 {[%clk 00:15:18]} {[%emt 00:00:13]} f6 11. Qxh5+ {[%clk 00:15:21]} {[%emt
00:00:17]} g6 12. Qf3 {[%clk 00:15:28]} {[%emt 00:00:18]} fxe5 13. dxe5 {[%emt
00:00:13]} b5 {[%clk 00:15:39]} {[%emt 00:00:02]} 14. Bb3 {[%clk 00:15:35]}
Nxe5 {[%clk 00:15:28]} 15. Qxf4 {[%clk 00:15:35]} Bd6 {[%clk 00:15:28]} {[%emt
00:00:33]} 16. Bxd5 {[%clk 00:15:27]} Nd3 {[%clk 00:14:39]} {[%emt 00:01:17]}
17. Qf7# {[%clk 00:15:31]} 1-0

[Event "Chessity Nationale Pupillendag 2019 - Groep G"]
[Site "Meppel, Netherlands"]
[Date "2019.06.29"]
[Round "5.5"]
[White "Shin, Hajin"]
[Black "Gang, Kevin"]
[Result "0-1"]
[TimeControl "15 min + 10 sec"]
[WhiteElo "526"]
[BlackElo "691"]

1. e4 {[%clk 00:15:18]} e5 {[%clk 00:15:20]} 2. Nf3 {[%clk 00:15:26]} {[%emt
00:00:02]} Nc6 {[%clk 00:15:29]} {[%emt 00:00:01]} 3. Bc4 {[%clk 00:15:33]}
{[%emt 00:00:03]} Bc5 {[%clk 00:15:38]} {[%emt 00:00:01]} 4. Nc3 {[%clk
00:15:38]} {[%emt 00:00:05]} Nf6 {[%clk 00:15:46]} {[%emt 00:00:02]} 5. d3
{[%clk 00:15:44]} {[%emt 00:00:04]} d6 {[%clk 00:15:55]} {[%emt 00:00:01]} 6.
Bg5 {[%clk 00:15:50]} {[%emt 00:00:04]} Bg4 {[%clk 00:16:01]} {[%emt 00:00:04]}
7. h3 {[%clk 00:15:55]} {[%emt 00:00:05]} Be6 {[%clk 00:16:05]} {[%emt
00:00:06]} 8. Bb3 {[%clk 00:15:59]} {[%emt 00:00:06]} h6 {[%clk 00:16:08]}
{[%emt 00:00:08]} 9. Bh4 {[%clk 00:16:04]} {[%emt 00:00:04]} O-O {[%clk
00:16:14]} {[%emt 00:00:03]} 10. O-O {[%clk 00:16:07]} {[%emt 00:00:08]} Qe7
{[%clk 00:16:10]} {[%emt 00:00:14]} 11. Qd2 {[%clk 00:16:07]} {[%emt 00:00:10]}
Rfe8 {[%clk 00:16:10]} {[%emt 00:00:10]} 12. Rfe1 {[%clk 00:16:10]} {[%emt
00:00:06]} Rad8 {[%clk 00:16:16]} {[%emt 00:00:05]} 13. Bxe6 {[%clk 00:15:57]}
{[%emt 00:00:23]} fxe6 {[%clk 00:16:23]} {[%emt 00:00:02]} 14. Nb5 {[%clk
00:15:53]} {[%emt 00:00:14]} a6 {[%clk 00:16:28]} {[%emt 00:00:06]} 15. Nc3
{[%clk 00:15:48]} {[%emt 00:00:15]} d5 {[%clk 00:16:35]} {[%emt 00:00:03]} 16.
d4 {[%clk 00:15:47]} {[%emt 00:00:10]} Bxd4 {[%clk 00:16:33]} {[%emt 00:00:13]}
17. Nxd4 {[%clk 00:15:55]} {[%emt 00:00:03]} Nxd4 {[%clk 00:16:36]} {[%emt
00:00:06]} 18. exd5 {[%clk 00:15:49]} {[%emt 00:00:16]} exd5 {[%clk 00:16:43]}
{[%emt 00:00:02]} 19. Rad1 {[%clk 00:15:15]} {[%emt 00:00:44]} Nf5 {[%clk
00:16:47]} {[%emt 00:00:07]} 20. Bg3 {[%clk 00:14:57]} {[%emt 00:00:27]} Nxg3
{[%clk 00:16:50]} {[%emt 00:00:08]} 21. fxg3 {[%clk 00:15:04]} {[%emt
00:00:02]} c6 {[%clk 00:16:56]} {[%emt 00:00:05]} 22. Re2 {[%clk 00:14:46]}
{[%emt 00:00:26]} Qd6 {[%clk 00:16:50]} {[%emt 00:00:18]} 23. a3 {[%clk
00:14:20]} {[%emt 00:00:36]} b5 {[%clk 00:16:50]} {[%emt 00:00:09]} 24. b4
{[%clk 00:14:24]} {[%emt 00:00:06]} Re6 {[%clk 00:16:35]} {[%emt 00:00:25]} 25.
Rde1 {[%clk 00:13:50]} {[%emt 00:00:44]} Rde8 {[%clk 00:16:13]} {[%emt
00:00:31]} 26. Kh2 {[%clk 00:13:35]} {[%emt 00:00:25]} e4 {[%clk 00:16:13]}
{[%emt 00:00:11]} 27. Qf4 {[%clk 00:13:33]} {[%emt 00:00:11]} Qxf4 {[%clk
00:15:51]} {[%emt 00:00:32]} 28. gxf4 {[%clk 00:13:41]} {[%emt 00:00:03]} Nh5
{[%clk 00:15:57]} {[%emt 00:00:04]} 29. f5 {[%clk 00:13:39]} {[%emt 00:00:11]}
Re5 {[%clk 00:16:03]} {[%emt 00:00:05]} 30. g4 {[%clk 00:13:44]} {[%emt
00:00:04]} Nf6 {[%clk 00:15:54]} {[%emt 00:00:20]} 31. Kg3 {[%clk 00:13:42]}
{[%emt 00:00:12]} h5 {[%clk 00:15:46]} {[%emt 00:00:18]} 32. g5 {[%clk
00:13:45]} {[%emt 00:00:07]} Nh7 {[%clk 00:15:49]} {[%emt 00:00:07]} 33. g6
{[%clk 00:13:45]} {[%emt 00:00:10]} Nf6 {[%clk 00:15:56]} {[%emt 00:00:02]} 34.
Kf4 {[%clk 00:13:47]} {[%emt 00:00:07]} h4 {[%clk 00:15:40]} {[%emt 00:00:28]}
35. Rf2 {[%clk 00:13:47]} {[%emt 00:00:07]} e3 {[%clk 00:15:44]} {[%emt
00:00:09]} 36. Rfe2 {[%clk 00:13:37]} {[%emt 00:00:19]} d4 {[%clk 00:15:49]}
{[%emt 00:00:05]} 37. Nd1 {[%clk 00:13:34]} {[%emt 00:00:13]} Nd5+ {[%clk
00:15:56]} {[%emt 00:00:04]} 38. Kg5 {[%clk 00:13:35]} {[%emt 00:00:07]} Re4
{[%clk 00:15:51]} {[%emt 00:00:17]} 39. Nf2 {[%clk 00:13:02]} {[%emt 00:00:42]}
exf2 {[%clk 00:15:30]} {[%emt 00:00:32]} 40. Rxe4 {[%clk 00:13:10]} {[%emt
00:00:03]} fxe1=Q {[%emt 00:00:09]} 41. Rxe1 {[%clk 00:13:09]} {[%emt
00:00:08]} Rxe1 {[%clk 00:15:42]} {[%emt 00:00:01]} 42. Kxh4 {[%clk 00:13:07]}
{[%emt 00:00:11]} Rg1 {[%clk 00:15:45]} {[%emt 00:00:07]} 43. Kh5 {[%clk
00:12:58]} {[%emt 00:00:19]} Ne3 {[%clk 00:15:52]} {[%emt 00:00:03]} 44. c3
{[%clk 00:12:46]} {[%emt 00:00:21]} dxc3 {[%clk 00:16:01]} {[%emt 00:00:02]} 45.
a4 {[%clk 00:12:55]} {[%emt 00:00:02]} c2 {[%clk 00:16:04]} {[%emt 00:00:07]}
46. f6 {[%clk 00:12:59]} {[%emt 00:00:06]} gxf6 {[%clk 00:16:05]} {[%emt
00:00:08]} 47. a5 {[%clk 00:13:06]} {[%emt 00:00:04]} c1=Q {[%emt 00:00:09]} 48.
g7 {[%clk 00:13:08]} {[%emt 00:00:03]} Kf7 {[%clk 00:15:56]} {[%emt 00:00:25]}
49. g8=Q+ Rxg8 50. h4 {[%clk 00:13:09]} {[%emt 00:00:01]} Rh8# {[%clk
00:15:59]} {[%emt 00:00:07]} 0-1

[Event "Chessity Nationale Pupillendag 2019 - Groep G"]
[Site "Meppel, Netherlands"]
[Date "2019.06.29"]
[Round "6.1"]
[White "Terlouw, Wouter"]
[Black "Rooijakkers, Liam"]
[Result "1-0"]
[TimeControl "15 min + 10 sec"]
[WhiteElo "898"]
[BlackElo "733"]

1. d4 {[%clk 00:15:17]} {[%emt 00:00:02]} d5 {[%clk 00:15:18]} {[%emt
00:00:02]} 2. c4 {[%clk 00:15:26]} {[%emt 00:00:02]} Nf6 {[%clk 00:15:23]}
{[%emt 00:00:05]} 3. cxd5 {[%clk 00:15:33]} {[%emt 00:00:02]} Nxd5 {[%clk
00:15:31]} {[%emt 00:00:02]} 4. e4 {[%clk 00:15:41]} {[%emt 00:00:02]} Nb6
{[%clk 00:15:34]} {[%emt 00:00:07]} 5. Nc3 {[%clk 00:15:48]} {[%emt 00:00:02]}
N8d7 {[%clk 00:15:37]} {[%emt 00:00:06]} 6. Nf3 {[%clk 00:15:54]} {[%emt
00:00:05]} e6 {[%clk 00:15:26]} {[%emt 00:00:22]} 7. Bc4 {[%clk 00:15:47]}
{[%emt 00:00:16]} Nxc4 {[%clk 00:15:17]} {[%emt 00:00:20]} 8. O-O {[%clk
00:15:35]} {[%emt 00:00:22]} Ncb6 {[%clk 00:15:04]} {[%emt 00:00:23]} 9. Bf4
{[%clk 00:15:40]} {[%emt 00:00:03]} c5 {[%clk 00:15:07]} {[%emt 00:00:08]} 10.
Nb5 {[%clk 00:15:42]} {[%emt 00:00:08]} e5 {[%clk 00:14:32]} {[%emt 00:00:45]}
11. dxe5 {[%clk 00:15:45]} {[%emt 00:00:06]} a6 {[%clk 00:14:29]} {[%emt
00:00:14]} 12. Nd6+ {[%clk 00:15:44]} {[%emt 00:00:12]} Bxd6 {[%clk 00:14:28]}
{[%emt 00:00:10]} 13. Qxd6 {[%clk 00:15:49]} {[%emt 00:00:05]} Nc4 {[%clk
00:14:01]} {[%emt 00:00:38]} 14. Qd1 {[%clk 00:15:26]} {[%emt 00:00:33]} Qe7
{[%clk 00:13:59]} {[%emt 00:00:12]} 15. Bg5 {[%clk 00:15:19]} {[%emt 00:00:17]}
Qe6 {[%clk 00:13:35]} {[%emt 00:00:32]} 16. Rc1 {[%clk 00:15:05]} {[%emt
00:00:27]} Ncxe5 {[%clk 00:13:33]} {[%emt 00:00:11]} 17. Nxe5 {[%clk 00:15:11]}
{[%emt 00:00:04]} Qxe5 {[%clk 00:13:34]} {[%emt 00:00:09]} 18. f4 {[%clk
00:15:16]} {[%emt 00:00:04]} Qd4+ {[%clk 00:13:26]} {[%emt 00:00:18]} 19. Qxd4
{[%clk 00:15:13]} {[%emt 00:00:14]} cxd4 {[%clk 00:13:32]} {[%emt 00:00:04]} 20.
Rfd1 {[%clk 00:15:21]} {[%emt 00:00:02]} f6 {[%clk 00:13:27]} {[%emt 00:00:16]}
21. Bh4 {[%clk 00:15:28]} {[%emt 00:00:03]} O-O {[%clk 00:13:27]} {[%emt
00:00:10]} 22. Rxd4 {[%clk 00:15:34]} {[%emt 00:00:04]} b5 {[%clk 00:13:23]}
{[%emt 00:00:13]} 23. Rd6 {[%clk 00:15:18]} {[%emt 00:00:26]} Re8 {[%clk
00:13:03]} {[%emt 00:00:29]} 24. Rdc6 {[%clk 00:15:23]} {[%emt 00:00:06]} Bb7
{[%clk 00:12:45]} {[%emt 00:00:28]} 25. Rc7 {[%clk 00:15:30]} {[%emt 00:00:04]}
Rec8 {[%clk 00:12:36]} {[%emt 00:00:17]} 26. Rxc8+ {[%clk 00:15:23]} {[%emt
00:00:19]} Rxc8 {[%clk 00:12:43]} {[%emt 00:00:03]} 27. Rd1 {[%clk 00:15:31]}
{[%emt 00:00:01]} Rd8 {[%clk 00:12:29]} {[%emt 00:00:24]} 28. e5 {[%clk
00:15:33]} {[%emt 00:00:07]} g5 {[%clk 00:12:18]} {[%emt 00:00:21]} 29. fxg5
{[%clk 00:15:34]} {[%emt 00:00:10]} fxg5 {[%clk 00:12:01]} {[%emt 00:00:28]} 30.
Bxg5 {[%clk 00:15:41]} {[%emt 00:00:01]} Rc8 {[%clk 00:11:15]} {[%emt
00:00:56]} 31. Rxd7 {[%clk 00:15:47]} {[%emt 00:00:05]} Bc6 {[%clk 00:11:13]}
{[%emt 00:00:09]} 32. Ra7 {[%clk 00:15:55]} {[%emt 00:00:05]} Re8 {[%clk
00:11:02]} {[%emt 00:00:20]} 33. Bf6 {[%clk 00:15:56]} {[%emt 00:00:09]} Rd8
{[%clk 00:10:36]} {[%emt 00:00:36]} 34. Bxd8 {[%clk 00:16:03]} {[%emt
00:00:04]} Bd5 {[%clk 00:10:40]} {[%emt 00:00:05]} 35. Rd7 {[%clk 00:16:08]}
{[%emt 00:00:04]} Bxa2 {[%clk 00:10:47]} {[%emt 00:00:03]} 36. Rd6 {[%clk
00:16:15]} {[%emt 00:00:03]} Kf8 {[%clk 00:10:46]} {[%emt 00:00:11]} 37. e6
{[%clk 00:16:22]} {[%emt 00:00:04]} Ke8 {[%clk 00:10:48]} {[%emt 00:00:07]} 38.
Bf6 {[%clk 00:16:29]} {[%emt 00:00:03]} a5 {[%clk 00:10:44]} {[%emt 00:00:14]}
39. Rd8# {[%clk 00:16:37]} {[%emt 00:00:02]} 1-0

[Event "Chessity Nationale Pupillendag 2019 - Groep G"]
[Site "Meppel, Netherlands"]
[Date "2019.06.29"]
[Round "6.2"]
[White "Geldof, Max"]
[Black "Huang, Luna"]
[Result "0-1"]
[TimeControl "15 min + 10 sec"]
[WhiteElo "745"]
[BlackElo "955"]

1. e4 {[%clk 00:15:18]} {[%emt 00:00:01]} e5 {[%clk 00:15:19]} {[%emt
00:00:02]} 2. Nf3 {[%clk 00:15:26]} {[%emt 00:00:02]} Nc6 {[%clk 00:15:27]}
{[%emt 00:00:01]} 3. Nc3 {[%clk 00:15:34]} {[%emt 00:00:02]} Nf6 {[%clk
00:15:36]} {[%emt 00:00:02]} 4. Bc4 {[%clk 00:15:43]} {[%emt 00:00:02]} Bc5
{[%clk 00:15:44]} {[%emt 00:00:02]} 5. d3 {[%clk 00:15:50]} {[%emt 00:00:02]}
d6 {[%clk 00:15:50]} {[%emt 00:00:04]} 6. h3 {[%clk 00:15:56]} {[%emt
00:00:04]} h6 {[%clk 00:15:50]} {[%emt 00:00:10]} 7. Be3 {[%clk 00:16:03]}
{[%emt 00:00:03]} Bb6 {[%clk 00:15:55]} {[%emt 00:00:04]} 8. O-O {[%clk
00:16:10]} {[%emt 00:00:03]} Be6 {[%clk 00:15:59]} {[%emt 00:00:07]} 9. Bb3
{[%clk 00:16:18]} {[%emt 00:00:03]} O-O {[%clk 00:15:56]} {[%emt 00:00:12]} 10.
d4 {[%clk 00:16:12]} {[%emt 00:00:16]} exd4 {[%clk 00:15:39]} {[%emt 00:00:27]}
11. Bxd4 {[%clk 00:16:19]} {[%emt 00:00:03]} Nxd4 {[%clk 00:15:33]} {[%emt
00:00:16]} 12. Nxd4 {[%clk 00:16:26]} {[%emt 00:00:03]} Bxd4 {[%clk 00:15:38]}
{[%emt 00:00:05]} 13. Qxd4 {[%clk 00:16:34]} {[%emt 00:00:02]} c5 {[%clk
00:15:14]} {[%emt 00:00:34]} 14. Qe3 {[%clk 00:16:28]} {[%emt 00:00:15]} a6
{[%clk 00:14:53]} {[%emt 00:00:32]} 15. Nd5 {[%clk 00:16:29]} {[%emt 00:00:08]}
Nxd5 {[%clk 00:14:47]} {[%emt 00:00:17]} 16. exd5 {[%clk 00:16:36]} {[%emt
00:00:03]} Bd7 {[%clk 00:14:28]} {[%emt 00:00:28]} 17. c3 {[%clk 00:16:44]}
{[%emt 00:00:02]} Re8 {[%clk 00:14:35]} {[%emt 00:00:04]} 18. Qd3 {[%clk
00:16:53]} {[%emt 00:00:01]} Qf6 {[%clk 00:13:44]} {[%emt 00:00:59]} 19. Bc2
{[%clk 00:16:58]} {[%emt 00:00:07]} g6 {[%clk 00:13:03]} {[%emt 00:00:50]} 20.
Qd2 {[%clk 00:16:47]} {[%emt 00:00:18]} Kg7 {[%clk 00:11:54]} {[%emt 00:01:23]}
21. Rfe1 {[%clk 00:16:44]} {[%emt 00:00:10]} Bf5 {[%clk 00:11:18]} {[%emt
00:00:48]} 22. Bxf5 {[%clk 00:16:36]} {[%emt 00:00:19]} Qxf5 {[%clk 00:11:23]}
{[%emt 00:00:06]} 23. Qd1 {[%clk 00:16:22]} {[%emt 00:00:22]} Rad8 {[%clk
00:10:33]} {[%emt 00:01:01]} 24. Qa4 {[%clk 00:16:22]} {[%emt 00:00:10]} Qd7
{[%clk 00:09:56]} {[%emt 00:00:47]} 25. Qxd7 {[%clk 00:16:22]} {[%emt
00:00:10]} Rxe1+ {[%clk 00:10:02]} {[%emt 00:00:04]} 26. Rxe1 {[%clk 00:16:30]}
{[%emt 00:00:02]} Rxd7 {[%clk 00:10:10]} {[%emt 00:00:02]} 27. Re8 {[%clk
00:16:31]} {[%emt 00:00:09]} Kh7 {[%clk 00:09:37]} {[%emt 00:00:43]} 28. Kf1
{[%clk 00:16:32]} {[%emt 00:00:08]} Kg7 {[%clk 00:09:29]} {[%emt 00:00:19]} 29.
Ke2 {[%clk 00:16:04]} {[%emt 00:00:12]} Kf6 {[%clk 00:09:16]} {[%emt 00:00:48]}
30. Kf3 {[%clk 00:15:57]} {[%emt 00:00:16]} h5 {[%clk 00:09:17]} {[%emt
00:00:10]} 31. g4 {[%emt 00:00:04]} Kg5 {[%emt 00:01:10]} 32. Ke3 {[%clk
00:14:38]} {[%emt 00:00:15]} hxg4 {[%clk 00:09:19]} {[%emt 00:00:07]} 33. hxg4
{[%clk 00:14:22]} {[%emt 00:00:26]} Kxg4 {[%clk 00:09:23]} {[%emt 00:00:06]} 34.
Re4+ {[%clk 00:14:23]} {[%emt 00:00:08]} Kg5 {[%clk 00:08:39]} {[%emt
00:00:55]} 35. b4 {[%clk 00:14:09]} {[%emt 00:00:26]} f5 {[%clk 00:08:26]}
{[%emt 00:00:23]} 36. Re6 {[%clk 00:13:56]} {[%emt 00:00:20]} f4+ {[%clk
00:08:17]} {[%emt 00:00:22]} 37. Kf3 {[%clk 00:13:56]} {[%emt 00:00:07]} Kf5
{[%clk 00:08:21]} {[%emt 00:00:08]} 38. Re8 {[%clk 00:13:54]} {[%emt 00:00:11]}
g5 {[%clk 00:06:42]} {[%emt 00:01:50]} 39. Re6 {[%clk 00:13:53]} {[%emt
00:00:10]} g4+ {[%clk 00:06:42]} {[%emt 00:00:11]} 40. Kg2 {[%clk 00:13:55]}
{[%emt 00:00:06]} Kg5 {[%clk 00:06:10]} {[%emt 00:00:45]} 41. bxc5 {[%clk
00:13:53]} {[%emt 00:00:12]} dxc5 {[%clk 00:06:14]} {[%emt 00:00:06]} 42. Re5+
{[%clk 00:13:51]} {[%emt 00:00:10]} Kf6 {[%clk 00:06:05]} {[%emt 00:00:20]} 43.
Re4 {[%clk 00:13:50]} {[%emt 00:00:10]} Kf5 {[%clk 00:06:05]} {[%emt 00:00:12]}
44. Re1 {[%clk 00:13:39]} {[%emt 00:00:18]} Rxd5 {[%clk 00:06:10]} {[%emt
00:00:08]} 45. Rb1 {[%clk 00:13:38]} {[%emt 00:00:10]} Rd7 {[%clk 00:06:09]}
{[%emt 00:00:12]} 46. Rh1 {[%clk 00:13:38]} {[%emt 00:00:09]} Kg6 {[%clk
00:05:41]} {[%emt 00:00:38]} 47. Rh4 {[%clk 00:13:35]} {[%emt 00:00:13]} Kg5
{[%clk 00:05:44]} {[%emt 00:00:07]} 48. Rh1 {[%clk 00:13:35]} {[%emt 00:00:07]}
b5 {[%clk 00:05:33]} {[%emt 00:00:24]} 49. Rg1 {[%clk 00:13:32]} {[%emt
00:00:12]} Rd3 {[%clk 00:05:12]} {[%emt 00:00:32]} 50. Rc1 {[%clk 00:13:27]}
{[%emt 00:00:15]} Rd2 {[%clk 00:05:12]} {[%emt 00:00:11]} 51. Ra1 {[%clk
00:13:17]} {[%emt 00:00:18]} Rc2 {[%clk 00:05:09]} {[%emt 00:00:14]} 52. a4
{[%clk 00:13:22]} {[%emt 00:00:05]} Rxc3 {[%clk 00:05:07]} {[%emt 00:00:13]} 53.
axb5 {[%clk 00:13:28]} {[%emt 00:00:04]} axb5 {[%clk 00:05:15]} {[%emt
00:00:03]} 54. Ra5 {[%clk 00:13:31]} {[%emt 00:00:05]} b4 {[%clk 00:05:23]}
{[%emt 00:00:03]} 55. Rb5 {[%clk 00:13:20]} {[%emt 00:00:21]} b3 {[%clk
00:05:23]} {[%emt 00:00:10]} 56. Kf1 {[%clk 00:13:22]} {[%emt 00:00:05]} g3
{[%clk 00:05:18]} {[%emt 00:00:18]} 57. Kg2 {[%clk 00:13:12]} {[%emt 00:00:20]}
gxf2 {[%clk 00:05:18]} {[%emt 00:00:11]} 58. Kxf2 {[%clk 00:13:19]} {[%emt
00:00:02]} Kg4 {[%clk 00:05:27]} 59. Rb6 {[%clk 00:13:18]} {[%emt 00:00:12]}
Rc2+ {[%clk 00:05:24]} {[%emt 00:00:13]} 60. Ke1 {[%clk 00:13:17]} {[%emt
00:00:05]} b2 {[%clk 00:05:30]} {[%emt 00:00:10]} 61. Rg6+ {[%clk 00:13:14]}
{[%emt 00:00:11]} Kf5 {[%clk 00:05:13]} {[%emt 00:00:28]} 62. Rb6 {[%clk
00:13:15]} {[%emt 00:00:10]} f3 {[%clk 00:05:17]} {[%emt 00:00:06]} 63. Kf1
{[%clk 00:13:17]} {[%emt 00:00:07]} Rc1+ {[%clk 00:05:23]} {[%emt 00:00:05]} 64.
Kf2 {[%clk 00:13:23]} {[%emt 00:00:03]} b1=Q {[%clk 00:05:30]} {[%emt
00:00:03]} 65. Rf6+ {[%clk 00:13:00]} {[%emt 00:00:29]} Kxf6 {[%clk 00:05:34]}
{[%emt 00:00:11]} 66. Kxf3 {[%clk 00:13:07]} {[%emt 00:00:02]} Qd3+ {[%clk
00:05:38]} {[%emt 00:00:06]} 67. Kf2 {[%emt 00:00:02]} Rc2+ {[%emt 00:00:04]}
68. Ke1 {[%clk 00:13:04]} {[%emt 00:00:06]} Qe2# {[%clk 00:05:46]} {[%emt
00:00:04]} 0-1